fUST/lending_fUST_20250911
["ID","MTS","AMOUNT","RATE_DAILY","PERIOD"]
[384840209,1757584246697,-151.0,0.00013972,2]
[384840210,1757584246706,-480.0,0.00013972,2]
[384840211,1757584246715,-480.0,0.00013972,2]
[384840212,1757584246724,-480.0,0.00013972,2]
[384840213,1757584246734,-151.0,0.00013972,2]
[384840214,1757584246743,-480.0,0.00013972,2]
[384840215,1757584246752,-151.0,0.00013972,2]
[384840216,1757584246762,-480.0,0.00013972,2]
[384840217,1757584246770,-585.26716046,0.00013972,2]
[384840218,1757584246780,-480.0,0.00013972,2]
[384840219,1757584246789,-480.0,0.00013972,2]
[384840220,1757584246798,-480.0,0.00013972,2]
[384840221,1757584246808,-282.917612,0.00013972,2]
[384840222,1757584246817,-480.0,0.00013972,2]
[384840223,1757584246827,-480.0,0.00013972,2]
[384840224,1757584246836,-480.0,0.00013972,2]
[384840225,1757584246845,-282.917612,0.00013972,2]
[384840226,1757584246854,-480.0,0.00013972,2]
[384840227,1757584246864,-151.0,0.00013972,2]
[384840228,1757584246873,-282.917612,0.00013972,2]
[384840229,1757584246882,-151.0,0.00013972,2]
[384840230,1757584246891,-282.917612,0.00013972,2]
[384840231,1757584246901,-151.0,0.00013972,2]
[384840232,1757584246910,-151.0,0.00013972,2]
[384840233,1757584246920,-480.0,0.00013972,2]
[384840234,1757584246929,-480.0,0.00013972,2]
[384840235,1757584246938,-480.0,0.00013972,2]
[384840236,1757584246947,-480.0,0.00013972,2]
[384840237,1757584246956,-480.0,0.00013972,2]
[384840238,1757584246965,-480.0,0.00013972,2]
[384840239,1757584246974,-480.0,0.00013972,2]
[384840240,1757584246983,-480.0,0.00013972,2]
[384840241,1757584246992,-179.53172178,0.00013972,2]
[384840242,1757584247001,-480.0,0.00013972,2]
[384840243,1757584247010,-151.0,0.00013972,2]
[384840244,1757584247019,-480.0,0.00013972,2]
[384840245,1757584247028,-821.46,0.00013972,2]
[384840246,1757584247037,-366.086966,0.00013972,2]
[384840247,1757584247046,-366.086966,0.00013972,2]
[384840248,1757584247055,-366.086966,0.00013972,2]
[384840249,1757584247066,-449.81,0.00013972,2]
[384840250,1757584247075,-366.086966,0.00013972,2]
[384840251,1757584247084,-480.0,0.00013972,2]
[384840252,1757584247094,-480.0,0.00013972,2]
[384840253,1757584247104,-405.73,0.00013972,2]
[384840254,1757584247115,-480.0,0.00013972,2]
[384840255,1757584247126,-480.0,0.00013972,2]
[384840256,1757584247136,-480.0,0.00013972,2]
[384840257,1757584247145,-480.0,0.00013972,2]
[384840258,1757584247154,-480.0,0.00013972,2]
[384840259,1757584247164,-151.0,0.00013972,2]
[384840260,1757584247173,-151.0,0.00013972,2]
[384840261,1757584247183,-480.0,0.00013972,2]
[384840262,1757584247192,-151.0,0.00013972,2]
[384840263,1757584247201,-151.0,0.00013972,2]
[384840264,1757584247211,-480.0,0.00013972,2]
[384840265,1757584247219,-151.0,0.00013972,2]
[384840266,1757584247229,-151.0,0.00013972,2]
[384840267,1757584247238,-151.0,0.00013972,2]
[384840268,1757584247248,-151.0,0.00013972,2]
[384840269,1757584247258,-151.0,0.00013972,2]
[384840270,1757584247267,-480.0,0.00013972,2]
[384840271,1757584247277,-151.0,0.00013972,2]
[384840272,1757584247286,-176.051593,0.00013972,2]
[384840273,1757584247296,-672.95,0.00013972,2]
[384840274,1757584247305,-151.0,0.00013972,2]
[384840275,1757584247314,-480.0,0.00013972,2]
[384840276,1757584247323,-480.0,0.00013972,2]
[384840277,1757584247332,-480.0,0.00013972,2]
[384840278,1757584247426,-519.79,0.00013972,2]
[384840279,1757584247435,-1071.51,0.00013972,2]
[384840280,1757584247445,-480.0,0.00013972,2]
[384840281,1757584247454,-151.0,0.00013972,2]
[384840282,1757584247464,-480.0,0.00013972,2]
[384840283,1757584247473,-566.16,0.00013972,2]
[384840284,1757584247482,-151.0,0.00013972,2]
[384840285,1757584247492,-480.0,0.00013972,2]
[384840286,1757584247502,-213.277159,0.00013972,2]
[384840287,1757584247513,-480.0,0.00013972,2]
[384840288,1757584247523,-480.0,0.00013972,2]
[384840289,1757584247532,-480.0,0.00013972,2]
[384840290,1757584247543,-360.42200151,0.00013972,2]
[384840291,1757584247553,-489.69,0.00013972,2]
[384840292,1757584247562,-480.0,0.00013972,2]
[384840293,1757584247571,-480.0,0.00013972,2]
[384840294,1757584247581,-480.0,0.00013972,2]
[384840295,1757584247591,-254.152151,0.00013972,2]
[384840296,1757584247601,-480.0,0.00013972,2]
[384840297,1757584247611,-254.152151,0.00013972,2]
[384840298,1757584247622,-544.78617761,0.00013972,2]
[384840299,1757584247632,-254.152151,0.00013972,2]
[384840300,1757584247643,-480.0,0.00013972,2]
[384840301,1757584247654,-480.0,0.00013972,2]
[384840302,1757584247663,-254.152151,0.00013972,2]
[384840303,1757584247672,-151.0,0.00013972,2]
[384840304,1757584247681,-480.0,0.00013972,2]
[384840305,1757584247692,-151.0,0.00013972,2]
[384840306,1757584247702,-480.0,0.00013972,2]
[384840307,1757584247711,-480.0,0.00013972,2]
[384840308,1757584247721,-480.0,0.00013972,2]
[384840309,1757584247730,-151.0,0.00013972,2]
[384840310,1757584247739,-151.0,0.00013972,2]
[384840311,1757584247748,-296.929472,0.00013972,2]
[384840312,1757584247758,-480.0,0.00013972,2]
[384840313,1757584247767,-480.0,0.00013972,2]
[384840314,1757584247776,-480.0,0.00013972,2]
[384840315,1757584247785,-480.0,0.00013972,2]
[384840316,1757584247795,-366.12977554,0.00013972,2]
[384840317,1757584247804,-480.0,0.00013972,2]
[384840318,1757584247814,-395.66916759,0.00013972,2]
[384840319,1757584247827,-151.0,0.00013972,2]
[384840320,1757584247837,-480.0,0.00013972,2]
[384840321,1757584247847,-151.0,0.00013972,2]
[384840322,1757584247856,-533.09,0.00013972,2]
[384840323,1757584247866,-151.0,0.00013972,2]
[384840324,1757584247876,-394.92252,0.00013972,2]
[384840325,1757584247886,-231.336713,0.00013972,2]
[384840326,1757584247895,-394.92252,0.00013972,2]
[384840327,1757584247904,-480.0,0.00013972,2]
[384840328,1757584247914,-394.92252,0.00013972,2]
[384840329,1757584247923,-480.0,0.00013972,2]
[384840330,1757584247932,-394.92252,0.00013972,2]
[384840331,1757584247941,-480.0,0.00013972,2]
[384840332,1757584247950,-480.0,0.00013972,2]
[384840333,1757584247959,-525.52,0.00013972,2]
[384840334,1757584247968,-519.40477466,0.00013972,2]
[384840335,1757584247977,-151.0,0.00013972,2]
[384840336,1757584247987,-480.0,0.00013972,2]
[384840337,1757584247996,-480.0,0.00013972,2]
[384840338,1757584248006,-480.0,0.00013972,2]
[384840339,1757584248016,-480.0,0.00013972,2]
[384840340,1757584248025,-1089.57,0.00013972,2]
[384840341,1757584248035,-440.83546616,0.00013972,2]
[384840342,1757584248044,-485.82683563,0.00013972,2]
[384840343,1757584248053,-151.0,0.00013972,2]
[384840344,1757584248066,-482.52917484,0.00013972,2]
[384840345,1757584248075,-151.0,0.00013972,2]
[384840346,1757584248085,-480.0,0.00013972,2]
[384840347,1757584248094,-480.0,0.00013972,2]
[384840348,1757584248103,-151.0,0.00013972,2]
[384840349,1757584248114,-1583.6,0.00013972,2]
[384840350,1757584248124,-480.0,0.00013972,2]
[384840351,1757584248133,-261.13868,0.00013972,2]
[384840352,1757584248144,-480.0,0.00013972,2]
[384840353,1757584248155,-242.82343069,0.00013972,2]
[384840354,1757584248165,-480.0,0.00013972,2]
[384840355,1757584248175,-480.0,0.00013972,2]
[384840356,1757584248185,-151.0,0.00013972,2]
[384840357,1757584248194,-151.0,0.00013972,2]
[384840358,1757584248204,-154.009083,0.00013972,2]
[384840359,1757584248214,-670.99734358,0.00013995,2]
[384840360,1757584248223,-25000.91170095,0.00014,2]
[384840361,1757584248233,-151.0,0.00014,2]
[384840362,1757584248243,-151.0,0.00014,2]
[384840363,1757584248252,-152.534203,0.00014,2]
[384840364,1757584248262,-151.0,0.00014,2]
[384840365,1757584248271,-151.0,0.00014,2]
[384840366,1757584248280,-151.0,0.00014,2]
[384840367,1757584248289,-151.0,0.00014,2]
[384840368,1757584248299,-151.0,0.00014,2]
[384840369,1757584248308,-151.0,0.00014,2]
[384840370,1757584248317,-151.0,0.00014,2]
[384840371,1757584248327,-194.770305,0.00014,2]
[384840372,1757584248336,-301.631984,0.00014,2]
[384840373,1757584248346,-151.0,0.00014,2]
[384840374,1757584248355,-151.0,0.00014,2]
[384840375,1757584248364,-151.0,0.00014,2]
[384840376,1757584248373,-151.0,0.00014,2]
[384840377,1757584248382,-151.0,0.00014,2]
[384840378,1757584248391,-151.0,0.00014,2]
[384840379,1757584248402,-254.152151,0.00014,2]
[384840380,1757584248412,-254.152151,0.00014,2]
[384840381,1757584248421,-254.152151,0.00014,2]
[384840382,1757584248430,-254.152151,0.00014,2]
[384840383,1757584248440,-151.0,0.00014,2]
[384840384,1757584248449,-151.0,0.00014,2]
[384840385,1757584248459,-151.0,0.00014,2]
[384840386,1757584248468,-151.0,0.00014,2]
[384840387,1757584248479,-151.0,0.00014,2]
[384840388,1757584248488,-151.0,0.00014,2]
[384840389,1757584248498,-394.92252,0.00014,2]
[384840390,1757584248507,-394.92252,0.00014,2]
[384840391,1757584248516,-394.92252,0.00014,2]
[384840392,1757584248526,-394.92252,0.00014,2]
[384840393,1757584248535,-151.0,0.00014,2]
[384840394,1757584248545,-151.0,0.00014,2]
[384840395,1757584248555,-151.0,0.00014,2]
[384840396,1757584248565,-151.0,0.00014,2]
[384840397,1757584248574,-151.0,0.00014,2]
[384840398,1757584248584,-311.91375786,0.00014113,2]
[384840399,1757584248593,-500.0,0.00014146,2]
[384840400,1757584248603,-282.917612,0.00014146,2]
[384840401,1757584248612,-282.917612,0.00014146,2]
[384840402,1757584248621,-151.0,0.00014146,2]
[384840403,1757584248631,-282.917612,0.00014146,2]
[384840404,1757584248640,-151.0,0.00014146,2]
[384840405,1757584248650,-282.917612,0.00014146,2]
[384840406,1757584248661,-151.0,0.00014146,2]
[384840407,1757584248670,-299.60647,0.00014146,2]
[384840408,1757584248680,-151.0,0.00014146,2]
[384840409,1757584248690,-366.086966,0.00014146,2]
[384840410,1757584248699,-366.086966,0.00014146,2]
[384840411,1757584248710,-366.086966,0.00014146,2]
[384840412,1757584248720,-366.086966,0.00014146,2]
[384840413,1757584248729,-1000.0,0.00014221,2]
[384840414,1757584248739,-1000.0,0.00014221,2]
[384840415,1757584248748,-1003.49835,0.00014221,2]
[384840416,1757584248758,-824.28321046,0.00014221,2]
[384840417,1757584248767,-1001.28086059,0.00014221,2]
[384840418,1757584248777,-660.87432306,0.00014221,2]
[384840419,1757584248787,-480.0,0.00014246,2]
[384840420,1757584248797,-480.0,0.00014246,2]
[384840421,1757584248807,-480.0,0.00014246,2]
[384840422,1757584248816,-401.64618975,0.00014246,2]
[384840423,1757584248826,-521.3839302,0.00014246,2]
[384840424,1757584248835,-480.0,0.00014246,2]
[384840425,1757584248846,-369.60791477,0.00014246,2]
[384840426,1757584248855,-480.0,0.00014246,2]
[384840427,1757584248865,-480.0,0.00014246,2]
[384840428,1757584248875,-480.0,0.00014246,2]
[384840429,1757584248884,-480.0,0.00014246,2]
[384840430,1757584248893,-480.0,0.00014246,2]
[384840431,1757584248904,-245.80028401,0.00014246,2]
[384840432,1757584248913,-480.0,0.00014246,2]
[384840433,1757584248923,-487.93175676,0.00014246,2]
[384840434,1757584248932,-480.0,0.00014246,2]
[384840435,1757584248943,-480.0,0.00014246,2]
[384840436,1757584248952,-490.62110879,0.00014246,2]
[384840437,1757584248962,-480.0,0.00014246,2]
[384840438,1757584248972,-575.21,0.00014246,2]
[384840439,1757584248983,-480.0,0.00014246,2]
[384840440,1757584248993,-480.0,0.00014246,2]
[384840441,1757584249002,-480.0,0.00014246,2]
[384840442,1757584249012,-480.0,0.00014246,2]
[384840443,1757584249021,-480.0,0.00014246,2]
[384840444,1757584249031,-480.0,0.00014246,2]
[384840445,1757584249040,-480.0,0.00014246,2]
[384840446,1757584249049,-480.0,0.00014246,2]
[384840447,1757584249059,-480.0,0.00014246,2]
[384840448,1757584249072,-489.04290201,0.00014246,2]
[384840449,1757584249082,-480.0,0.00014246,2]
[384840450,1757584249091,-219.76359229,0.00014246,2]
[384840451,1757584249101,-480.0,0.00014246,2]
[384840452,1757584249112,-480.0,0.00014246,2]
[384840453,1757584249122,-480.0,0.00014246,2]
[384840454,1757584249132,-251.694711,0.00014246,2]
[384840455,1757584249141,-554.74010907,0.00014246,2]
[384840456,1757584249152,-151.0,0.00014246,2]
[384840457,1757584249162,-480.0,0.00014246,2]
[384840458,1757584249172,-480.0,0.00014246,2]
[384840459,1757584249182,-480.0,0.00014246,2]
[384840460,1757584249191,-480.0,0.00014246,2]
[384840461,1757584249201,-480.0,0.00014246,2]
[384840462,1757584249210,-480.0,0.00014246,2]
[384840463,1757584249219,-480.0,0.00014246,2]
[384840464,1757584249228,-480.0,0.00014246,2]
[384840465,1757584249238,-465.1149354,0.00014246,2]
[384840466,1757584249247,-362.54959105,0.00014246,2]
[384840467,1757584249256,-480.0,0.00014246,2]
[384840468,1757584249266,-539.57150584,0.00014246,2]
[384840469,1757584249275,-502.46215697,0.00014246,2]
[384840470,1757584249285,-480.0,0.00014246,2]
[384840471,1757584249295,-480.0,0.00014246,2]
[384840472,1757584249304,-480.0,0.00014246,2]
[384840473,1757584249313,-480.0,0.00014246,2]
[384840474,1757584249322,-480.0,0.00014246,2]
[384840475,1757584249332,-480.0,0.00014246,2]
[384840476,1757584249341,-480.0,0.00014246,2]
[384840477,1757584249351,-589.59419542,0.00014246,2]
[384840478,1757584249360,-480.0,0.00014246,2]
[384840479,1757584249369,-507.73,0.00014246,2]
[384840480,1757584249379,-482.6159508,0.00014246,2]
[384840481,1757584249468,-480.0,0.00014246,2]
[384840482,1757584249477,-480.0,0.00014246,2]
[384840483,1757584249487,-480.0,0.00014246,2]
[384840484,1757584249496,-480.0,0.00014246,2]
[384840485,1757584249505,-227.11213058,0.00014246,2]
[384840486,1757584249514,-573.35,0.00014246,2]
[384840487,1757584249523,-480.0,0.00014246,2]
[384840488,1757584249532,-480.0,0.00014246,2]
[384840489,1757584249541,-351.22170609,0.00014246,2]
[384840490,1757584249551,-480.0,0.00014246,2]
[384840491,1757584249560,-480.0,0.00014246,2]
[384840492,1757584249570,-480.0,0.00014246,2]
[384840493,1757584249580,-151.0,0.00014246,2]
[384840494,1757584249590,-480.0,0.00014246,2]
[384840495,1757584249600,-484.9327965,0.00014246,2]
[384840496,1757584249609,-480.0,0.00014246,2]
[384840497,1757584249618,-480.0,0.00014246,2]
[384840498,1757584249627,-480.0,0.00014246,2]
[384840499,1757584249638,-480.0,0.00014246,2]
[384840500,1757584249648,-151.0,0.00014246,2]
[384840501,1757584249657,-151.0,0.00014246,2]
[384840502,1757584249668,-151.0,0.00014246,2]
[384840503,1757584249678,-491.67217533,0.00014246,2]
[384840504,1757584249687,-480.0,0.00014246,2]
[384840505,1757584249697,-442.48643989,0.00014246,2]
[384840506,1757584249706,-207.53156748,0.00014246,2]
[384840507,1757584249717,-151.0,0.00014246,2]
[384840508,1757584249726,-151.0,0.00014246,2]
[384840509,1757584249735,-1053.06,0.00014246,2]
[384840510,1757584249745,-480.0,0.00014246,2]
[384840511,1757584249755,-151.0,0.00014246,2]
[384840512,1757584249766,-151.0,0.00014246,2]
[384840513,1757584249776,-480.0,0.00014246,2]
[384840514,1757584249785,-151.0,0.00014246,2]
[384840515,1757584249795,-523.43,0.00014246,2]
[384840516,1757584249804,-151.0,0.00014246,2]
[384840517,1757584249813,-187.24836122,0.00014246,2]
[384840518,1757584249822,-480.0,0.00014246,2]
[384840519,1757584249839,-480.0,0.00014246,2]
[384840520,1757584249848,-777.85,0.00014246,2]
[384840521,1757584249858,-302.0,0.00014246,2]
[384840522,1757584249867,-480.0,0.00014246,2]
[384840523,1757584249878,-480.0,0.00014246,2]
[384840524,1757584249887,-275.20034553,0.00014246,2]
[384840525,1757584249898,-480.0,0.00014246,2]
[384840526,1757584249908,-480.0,0.00014246,2]
[384840527,1757584249917,-480.0,0.00014246,2]
[384840528,1757584249926,-151.0,0.00014246,2]
[384840529,1757584249935,-480.0,0.00014246,2]
[384840530,1757584249944,-609.42970449,0.00014246,2]
[384840531,1757584249954,-109.98209666,0.00014246,2]
[384840532,1757584250091,-41.01790334,0.00014246,2]
[384840533,1757584250101,-442.55136857,0.00014246,2]
[384840534,1757584250112,-37.44863143,0.00014246,2]
[384840535,1757584250124,-151.0,0.00014246,2]
[384840536,1757584250133,-482.77,0.00014246,2]
[384840537,1757584250143,-81.51762563,0.00014246,2]
[384840538,1757584250155,-236.55237437,0.00014246,2]
[384840539,1757584250164,-480.0,0.00014246,2]
[384840540,1757584250174,-316.23611477,0.00014246,2]
[384840541,1757584250184,-280.91626382,0.00014246,2]
[384840542,1757584250193,-480.0,0.00014246,2]
[384840543,1757584250203,-480.0,0.00014246,2]
[384840544,1757584250213,-479.64636813,0.00014246,2]
[384840545,1757584250224,-463.891848,0.00014246,2]
[384840546,1757584250233,-480.0,0.00014246,2]
[384840547,1757584250243,-821.46,0.00014246,2]
[384840548,1757584250253,-537.34,0.00014246,2]
[384840549,1757584250263,-480.0,0.00014246,2]
[384840550,1757584250273,-480.0,0.00014246,2]
[384840551,1757584250284,-480.0,0.00014246,2]
[384840552,1757584250293,-480.0,0.00014246,2]
[384840553,1757584250303,-672.95,0.00014246,2]
[384840554,1757584250314,-480.0,0.00014246,2]
[384840555,1757584250323,-480.0,0.00014246,2]
[384840556,1757584250333,-480.0,0.00014246,2]
[384840557,1757584250342,-1071.51,0.00014246,2]
[384840558,1757584250351,-480.0,0.00014246,2]
[384840559,1757584250361,-566.16,0.00014246,2]
[384840560,1757584250372,-480.0,0.00014246,2]
[384840561,1757584250384,-540.41864426,0.00014246,2]
[384840562,1757584250393,-561.99870955,0.00014246,2]
[384840563,1757584250403,-480.0,0.00014246,2]
[384840564,1757584250412,-480.0,0.00014246,2]
[384840565,1757584250420,-480.0,0.00014246,2]
[384840566,1757584250430,-480.0,0.00014246,2]
[384840567,1757584250439,-480.0,0.00014246,2]
[384840568,1757584250448,-480.0,0.00014246,2]
[384840569,1757584250458,-480.0,0.00014246,2]
[384840570,1757584250467,-480.0,0.00014246,2]
[384840571,1757584250476,-525.52,0.00014246,2]
[384840572,1757584250486,-1089.57,0.00014246,2]
[384840573,1757584250495,-480.0,0.00014246,2]
[384840574,1757584250504,-1583.6,0.00014246,2]
[384840575,1757584250513,-466.34415047,0.00014246,2]
[384840576,1757584250529,-13.65584953,0.00014246,2]
[384840577,1757584250538,-480.0,0.00014246,2]
[384840578,1757584250547,-44.95910457,0.00014246,2]
[384840579,1757584250583,-151.0,0.00013972,2]
[384840580,1757584250594,-425.62134543,0.00014246,2]
[384840581,1757584250604,-666.0,0.00014255,2]
[384840582,1757584250613,-530.95967032,0.00014362,2]
[384840583,1757584250623,-160.0,0.00014362,2]
[384840584,1757584250632,-160.0,0.00014362,2]
[384840585,1757584250641,-417.15472785,0.00014362,2]
[384840586,1757584250651,-846.96613202,0.00014362,2]
[384840587,1757584250661,-160.0,0.00014362,2]
[384840588,1757584250670,-217.69300629,0.00014362,2]
[384840589,1757584250680,-233.10680167,0.00014362,2]
[384840590,1757584250689,-500.0,0.00014367,2]
[384840591,1757584250699,-500.77986851,0.00014367,2]
[384840592,1757584250707,-500.0,0.00014367,2]
[384840593,1757584250717,-501.24985842,0.00014418,2]
[384840594,1757584250726,-428.494352,0.00014418,2]
[384840595,1757584250735,-307.6574513,0.00014418,2]
[384840596,1757584250744,-504.526592,0.00014424,2]
[384840597,1757584250753,-504.526592,0.00014424,2]
[384840598,1757584250763,-151.0,0.00014424,2]
[384840599,1757584250772,-504.526592,0.00014424,2]
[384840600,1757584250781,-504.526592,0.00014424,2]
[384840601,1757584250790,-151.0,0.00014424,2]
[384840602,1757584250799,-151.0,0.00014515,2]
[384840603,1757584250808,-162.55837,0.00014515,2]
[384840604,1757584250818,-151.0,0.00014515,2]
[384840605,1757584250827,-151.0,0.00014515,2]
[384840606,1757584250836,-151.0,0.00014515,2]
[384840607,1757584250845,-151.0,0.00014515,2]
[384840608,1757584250855,-151.985696,0.00014515,2]
[384840609,1757584250865,-151.0,0.00014515,2]
[384840610,1757584250874,-151.0,0.00014515,2]
[384840611,1757584250883,-618.33055623,0.0001452,2]
[384840612,1757584250893,-575.21,0.0001452,2]
[384840613,1757584250902,-480.0,0.0001452,2]
[384840614,1757584250911,-480.0,0.0001452,2]
[384840615,1757584250920,-480.0,0.0001452,2]
[384840616,1757584250929,-480.0,0.0001452,2]
[384840617,1757584250938,-480.0,0.0001452,2]
[384840618,1757584250947,-480.04824919,0.0001452,2]
[384840619,1757584250956,-1053.06,0.0001452,2]
[384840620,1757584250966,-480.0,0.0001452,2]
[384840621,1757584250975,-523.43,0.0001452,2]
[384840622,1757584250984,-468.3,0.0001452,2]
[384840623,1757584250993,-777.85,0.0001452,2]
[384840624,1757584251002,-480.0,0.0001452,2]
[384840625,1757584251011,-480.0,0.0001452,2]
[384840626,1757584251021,-480.0,0.0001452,2]
[384840627,1757584251029,-335.57970823,0.0001452,2]
[384840628,1757584251039,-480.0,0.0001452,2]
[384840629,1757584251047,-480.0,0.0001452,2]
[384840630,1757584251057,-168.38,0.0001452,2]
[384840631,1757584251069,-821.46,0.0001452,2]
[384840632,1757584251078,-480.0,0.0001452,2]
[384840633,1757584251087,-480.0,0.0001452,2]
[384840634,1757584251096,-172.21,0.0001452,2]
[384840635,1757584251106,-672.95,0.0001452,2]
[384840636,1757584251117,-480.0,0.0001452,2]
[384840637,1757584251126,-1071.51,0.0001452,2]
[384840638,1757584251218,-566.16,0.0001452,2]
[384840639,1757584251228,-480.0,0.0001452,2]
[384840640,1757584251237,-480.0,0.0001452,2]
[384840641,1757584251246,-398.69,0.0001452,2]
[384840642,1757584251256,-489.35930241,0.0001452,2]
[384840643,1757584251265,-480.0,0.0001452,2]
[384840644,1757584251274,-285.89,0.0001452,2]
[384840645,1757584251283,-525.52,0.0001452,2]
[384840646,1757584251293,-1089.57,0.0001452,2]
[384840647,1757584251302,-1583.6,0.0001452,2]
[384840648,1757584251311,-480.0,0.0001452,2]
[384840649,1757584251320,-433.57024684,0.00014614,2]
[384840650,1757584251329,-488.81612663,0.00014614,2]
[384840651,1757584251339,-500.0,0.00014614,2]
[384840652,1757584251348,-500.0,0.00014614,2]
[384840653,1757584251357,-500.0,0.00014614,2]
[384840654,1757584251366,-500.0,0.00014768,2]
[384840655,1757584251376,-151.0,0.00014794,2]
[384840656,1757584251385,-151.0,0.00014794,2]
[384840657,1757584251395,-575.21,0.00014794,2]
[384840658,1757584251404,-480.0,0.00014794,2]
[384840659,1757584251413,-151.0,0.00014794,2]
[384840660,1757584251423,-480.0,0.00014794,2]
[384840661,1757584251432,-480.0,0.00014794,2]
[384840662,1757584251441,-151.0,0.00014794,2]
[384840663,1757584251450,-151.0,0.00014794,2]
[384840664,1757584251460,-347.855611,0.00014794,2]
[384840665,1757584251470,-347.855611,0.00014794,2]
[384840666,1757584251479,-151.0,0.00014794,2]
[384840667,1757584251489,-151.0,0.00014794,2]
[384840668,1757584251498,-151.0,0.00014794,2]
[384840669,1757584251507,-347.855611,0.00014794,2]
[384840670,1757584251516,-347.855611,0.00014794,2]
[384840671,1757584251525,-151.0,0.00014794,2]
[384840672,1757584251534,-151.0,0.00014794,2]
[384840673,1757584251544,-151.0,0.00014794,2]
[384840674,1757584251553,-151.0,0.00014794,2]
[384840675,1757584251562,-151.0,0.00014794,2]
[384840676,1757584251572,-293.681296,0.00014794,2]
[384840677,1757584251582,-151.0,0.00014794,2]
[384840678,1757584251592,-151.0,0.00014794,2]
[384840679,1757584251602,-151.0,0.00014794,2]
[384840680,1757584251611,-151.0,0.00014794,2]
[384840681,1757584251621,-1053.06,0.00014794,2]
[384840682,1757584251630,-480.0,0.00014794,2]
[384840683,1757584251640,-523.43,0.00014794,2]
[384840684,1757584251649,-777.85,0.00014794,2]
[384840685,1757584251659,-480.0,0.00014794,2]
[384840686,1757584251669,-480.0,0.00014794,2]
[384840687,1757584251680,-480.0,0.00014794,2]
[384840688,1757584251689,-821.46,0.00014794,2]
[384840689,1757584251699,-290.23,0.00014794,2]
[384840690,1757584251708,-311.65,0.00014794,2]
[384840691,1757584251717,-672.95,0.00014794,2]
[384840692,1757584251726,-590.94,0.00014794,2]
[384840693,1757584251738,-1071.51,0.00014794,2]
[384840694,1757584251748,-566.16,0.00014794,2]
[384840695,1757584251757,-480.0,0.00014794,2]
[384840696,1757584251766,-480.0,0.00014794,2]
[384840697,1757584251776,-525.52,0.00014794,2]
[384840698,1757584251786,-1089.57,0.00014794,2]
[384840699,1757584251795,-1583.6,0.00014794,2]
[384840700,1757584251805,-480.0,0.00014794,2]
[384840701,1757584251814,-589.92842265,0.00014901,2]
[384840702,1757584251984,-107.07157735,0.00014901,2]
[384840703,1757584251994,-420.0,0.00014901,2]
[384840704,1757584252003,-420.0,0.00014901,2]
[384840705,1757584252012,-470.48033759,0.00014915,2]
[384840706,1757584252022,-529.51966241,0.00014915,2]
[384840707,1757584252032,-1200.0,0.00014956,2]
[384840708,1757584252041,-339.79,0.00014968,2]